fUSD/lending_fUSD_20250330
["ID","MTS","AMOUNT","RATE_DAILY","PERIOD"]
[356861358,1743340232501,-3785.29989192,0.0003719,2]
[356861359,1743340232510,-157.96,0.00037199,2]
[356861360,1743340232520,-683.192,0.00037199,47]
[356861361,1743340232529,-23839.59029747,0.000372,103]
[356861362,1743340232539,-23839.59029745,0.000372,103]
[356861363,1743340232548,-23839.59029745,0.000379,108]
[356861364,1743340232558,-312.84,0.00038443,2]
[356861365,1743340232567,-600.0,0.00039,2]
[356861366,1743340232577,-1281.88236368,0.000395,2]
[356861378,1743340238089,-277.083,0.0003871,2]
[356861379,1743340238099,-563.40278256,0.000389,2]
[356861380,1743340238110,-618.23923884,0.000389,2]
[356861388,1743340240156,-511.4387786,0.000389,2]
[356861389,1743340240166,-371.79235635,0.000395,2]
[356861390,1743340240178,-346.32527997,0.000395,2]
[356861391,1743340240187,-150.0,0.000395,4]
[356861392,1743340240196,-150.0,0.00039536,2]
[356861393,1743340240206,-365.93,0.00039618,2]
[356861394,1743340240215,-360.25,0.00039649,2]
[356861395,1743340240224,-156.84,0.000399,31]
[356861396,1743340240234,-156.84,0.000399,31]
[356861397,1743340240243,-150.0,0.00040592,2]
[356861398,1743340240253,-223.8528,0.000409,2]
[356861399,1743340240262,-650.0,0.00041,2]
[356861400,1743340240271,-176.0,0.00041,14]
[356861401,1743340240281,-150.0,0.00041328,7]
[356861402,1743340240290,-23839.59029745,0.000414,120]
[356861403,1743340240300,-1000.0,0.00041562,2]
[356861404,1743340240309,-150.0,0.00041648,2]
[356861405,1743340240318,-365.93,0.00041882,2]
[356861406,1743340240327,-1193.10764472,0.00042,120]
[356861407,1743340240337,-1379.06771053,0.00042111,120]
[356861408,1743340240346,-2000.0,0.00042122,120]
[356861409,1743340240355,-236.01,0.00042144,120]
[356861410,1743340240365,-2000.0,0.000422,2]
[356861411,1743340240374,-773.8227904,0.000423,4]
[356861412,1743340240384,-23900.0,0.00042359,2]
[356861413,1743340240393,-150.0,0.00042704,2]
[356861414,1743340240402,-250.0,0.00042705,2]
[356861415,1743340240412,-500.0,0.00042739,60]
[356861416,1743340240421,-161.39,0.00042887,120]
[356861417,1743340240430,-152.0,0.00042888,3]
[356861418,1743340240439,-700.0,0.00043,2]
[356861419,1743340240448,-156.84,0.000431,33]
[356861420,1743340240458,-156.84,0.000431,33]
[356861421,1743340240467,-176.0,0.00043151,90]
[356861422,1743340240477,-2176.63648391,0.0004327,2]
[356861423,1743340240486,-417.36072956,0.00043276,30]
[356861424,1743340240495,-1365.2884,0.000435,2]
[356861425,1743340240505,-550.7125,0.000436,2]
[356861426,1743340240514,-1204.836,0.000436,2]
[356861427,1743340240523,-2500.0,0.000436,2]
[356861428,1743340240532,-161.78529314,0.00043673,10]
[356861430,1743340240541,-200.93823212,0.00043673,10]
[356861431,1743340240551,-505.32562695,0.00043673,10]
[356861432,1743340240560,-153.3094922,0.00043673,10]
[356861433,1743340240570,-500.0,0.00043699,31]
[356861434,1743340240579,-500.0,0.00043699,31]
[356861435,1743340240588,-500.0,0.00043699,31]
[356861436,1743340240597,-500.0,0.00043699,31]
[356861437,1743340240607,-500.0,0.00043699,31]
[356861438,1743340240616,-500.0,0.00043699,31]
[356861440,1743340240625,-500.0,0.00043699,31]
[356861441,1743340240634,-500.0,0.00043699,31]
[356861442,1743340240644,-500.0,0.00043699,31]
[356861443,1743340240653,-500.0,0.00043699,31]
[356861444,1743340240663,-500.0,0.00043699,31]
[356861445,1743340240672,-500.0,0.000437,120]
[356861446,1743340240681,-500.0,0.000437,120]
[356861447,1743340240691,-500.0,0.000437,120]
[356861448,1743340240700,-500.0,0.000437,120]
[356861449,1743340240709,-500.0,0.000437,120]
[356861450,1743340240718,-500.0,0.000437,120]
[356861451,1743340240728,-500.0,0.000437,120]
[356861452,1743340240738,-500.0,0.000437,120]
[356861453,1743340240747,-500.0,0.000437,120]
[356861454,1743340240756,-500.0,0.000437,120]
[356861455,1743340240765,-500.0,0.000437,120]
[356861457,1743340240775,-500.0,0.000437,120]
[356861459,1743340240784,-500.0,0.000437,120]
[356861461,1743340240793,-500.0,0.000437,120]
[356861463,1743340240803,-500.0,0.000437,120]
[356861464,1743340240812,-500.0,0.000437,120]
[356861465,1743340240822,-995.0,0.000437,120]
[356861466,1743340240831,-500.0,0.000437,120]
[356861467,1743340240841,-500.0,0.000437,120]
[356861468,1743340240850,-500.0,0.000437,120]
[356861469,1743340240860,-500.0,0.000437,120]
[356861470,1743340240869,-500.0,0.000437,120]
[356861471,1743340240879,-500.0,0.000437,120]
[356861472,1743340240888,-500.0,0.000437,120]
[356861473,1743340240897,-500.0,0.000437,120]
[356861474,1743340240907,-500.0,0.000437,120]
[356861475,1743340240916,-500.0,0.000437,120]
[356861476,1743340240925,-500.0,0.000437,120]
[356861477,1743340240935,-500.0,0.000437,120]
[356861478,1743340240946,-500.0,0.000437,120]
[356861479,1743340240956,-500.0,0.000437,120]
[356861480,1743340240965,-500.0,0.000437,120]
[356861481,1743340240975,-500.0,0.000437,120]
[356861482,1743340240984,-500.0,0.000437,120]
[356861483,1743340240994,-882.0,0.000437,120]
[356861484,1743340241004,-500.0,0.000437,120]
[356861485,1743340241013,-500.0,0.000437,120]
[356861486,1743340241023,-500.0,0.000437,120]
[356861487,1743340241033,-500.0,0.000437,120]
[356861488,1743340241042,-500.0,0.000437,120]
[356861489,1743340241051,-500.0,0.000437,120]
[356861490,1743340241060,-500.0,0.000437,120]
[356861491,1743340241070,-500.0,0.000437,120]
[356861492,1743340241079,-500.0,0.000437,120]
[356861493,1743340241089,-500.0,0.000437,120]
[356861494,1743340241098,-500.0,0.000437,120]
[356861495,1743340241107,-500.0,0.000437,120]
[356861496,1743340241116,-500.0,0.000437,120]
[356861497,1743340241125,-500.0,0.000437,120]
[356861498,1743340241135,-500.0,0.000437,120]
[356861499,1743340241144,-500.0,0.000437,120]
[356861500,1743340241153,-500.0,0.000437,120]
[356861501,1743340241162,-500.0,0.000437,120]
[356861502,1743340241171,-500.0,0.000437,120]
[356861503,1743340241181,-500.0,0.000437,120]
[356861504,1743340241190,-500.0,0.000437,120]
[356861505,1743340241199,-500.0,0.000437,120]
[356861506,1743340241208,-500.0,0.000437,120]
[356861507,1743340241217,-500.0,0.000437,120]
[356861508,1743340241227,-500.0,0.000437,120]
[356861509,1743340241237,-500.0,0.000437,120]
[356861510,1743340241247,-500.0,0.000437,120]
[356861511,1743340241256,-500.0,0.000437,120]
[356861512,1743340241266,-500.0,0.000437,120]
[356861513,1743340241275,-500.0,0.000437,120]
[356861514,1743340241284,-500.0,0.000437,120]
[356861515,1743340241293,-878.0,0.000437,120]
[356861516,1743340241302,-16760.4938268,0.000437,17]
[356861538,1743340243509,-1556.50367413,0.000437,17]
[356861539,1743340243518,-149.03282619,0.000437,15]
[356861540,1743340243866,-69.38825264,0.000437,15]
[356861541,1743340243875,-150.0,0.000437,30]
[356861542,1743340243884,-150.0,0.000437,30]
[356861543,1743340243894,-150.0,0.000437,30]
[356861544,1743340243903,-150.0,0.000437,30]
[356861545,1743340243912,-805.34574954,0.0004375,2]
[356861546,1743340243921,-150.0,0.0004376,2]
[356861547,1743340243931,-150.0,0.00043767,30]
[356861548,1743340243940,-150.0,0.00043772,30]
[356861549,1743340243952,-478.08303621,0.000438,30]
[356861550,1743340243962,-25538.4412,0.000438,2]
[356861551,1743340243971,-2615.45047757,0.000438,90]
[356861552,1743340243980,-150.0,0.00043834,30]
[356861553,1743340243991,-1407.35,0.00043835,120]
[356861554,1743340244000,-500.0,0.00043835,120]
[356861555,1743340244009,-150.0,0.00043844,30]
[356861556,1743340244019,-150.0,0.0004385,120]
[356861557,1743340244029,-150.0,0.00043851,30]
[356861558,1743340244039,-161.83175448,0.00043873,28]
[356861559,1743340244048,-5150.0,0.0004388,34]
[356861560,1743340244058,-5100.0,0.0004388,2]
[356861561,1743340244067,-5100.0,0.0004388,7]
[356861562,1743340244076,-5100.0,0.0004388,8]
[356861563,1743340244085,-384.64650267,0.00043887,15]
[356861564,1743340244094,-384.64650266,0.00043888,15]
[356861565,1743340244103,-384.64650266,0.0004389,15]
[356861566,1743340244113,-2122.09253694,0.0004389,56]
[356861567,1743340244123,-19131.0534,0.0004389,2]
[356861568,1743340244132,-4999.9977,0.0004389,120]
[356861569,1743340244141,-384.64650266,0.00043891,15]
[356861570,1743340244150,-384.64650266,0.00043893,15]
[356861571,1743340244160,-384.64650266,0.00043894,15]
[356861572,1743340244170,-384.64650266,0.00043896,15]
[356861573,1743340244179,-384.64650266,0.00043897,15]
[356861574,1743340244188,-384.64650266,0.00043899,15]
[356861575,1743340244198,-228.7171,0.000439,2]
[356861576,1743340244208,-2832.6,0.000439,14]
[356861577,1743340244217,-44530.7379,0.000439,2]
[356861578,1743340244226,-160.19209686,0.000439,120]
[356861579,1743340244235,-384.64650266,0.000439,15]
[356861580,1743340244244,-172.0626204,0.000439,9]
[356861581,1743340244253,-2003.14627236,0.000439,2]
[356861582,1743340244262,-150.0,0.00043901,30]
[356861583,1743340244272,-150.0,0.00043916,30]
[356861584,1743340244281,-1000.0,0.00043945,120]
[356861585,1743340244290,-150.0,0.00043967,30]
[356861586,1743340244299,-75090.7370068,0.0004397,3]
[356861587,1743340244309,-500.0,0.00043973,10]
[356861588,1743340244318,-25030.2456689,0.0004398,3]
[356861589,1743340244327,-151.33,0.0004398,2]
[356861590,1743340244337,-125151.228345,0.0004398,3]
[356861591,1743340244347,-151.33,0.0004398,2]
[356861592,1743340244356,-151.33,0.0004398,2]
[356861593,1743340244366,-150.0,0.00043988,30]
[356861594,1743340244376,-50060.4913379,0.0004399,3]
[356861595,1743340244386,-151.33,0.0004399,2]
[356861596,1743340244395,-213.25,0.0004399,8]
[356861597,1743340244405,-300362.948027,0.0004399,3]
[356861598,1743340244414,-429.2153233,0.0004399,7]
[356861599,1743340244423,-429.2153233,0.0004399,7]
[356861600,1743340244432,-429.2153233,0.0004399,7]
[356861601,1743340244441,-151.33,0.0004399,2]
[356861602,1743340244450,-151.33,0.0004399,2]
[356861603,1743340244459,-151.33,0.0004399,2]
[356861604,1743340244469,-151.33,0.0004399,2]
[356861605,1743340244478,-151.33,0.0004399,2]
[356861606,1743340244488,-151.33,0.0004399,2]
[356861607,1743340244497,-151.33,0.0004399,2]
[356861608,1743340244506,-151.33,0.0004399,2]
[356861609,1743340244515,-151.33,0.0004399,2]
[356861610,1743340244525,-151.33,0.0004399,2]
[356861611,1743340244535,-151.33,0.0004399,2]
[356861612,1743340244544,-151.33,0.0004399,2]
[356861613,1743340244554,-151.33,0.0004399,2]
[356861614,1743340244563,-151.33,0.0004399,2]
[356861615,1743340244573,-151.33,0.0004399,2]
[356861616,1743340244583,-151.33,0.0004399,2]
[356861617,1743340244592,-151.33,0.0004399,2]
[356861618,1743340244601,-151.33,0.0004399,2]
[356861619,1743340244611,-151.33,0.0004399,2]
[356861620,1743340244620,-151.33,0.0004399,2]
[356861621,1743340244629,-151.33,0.0004399,2]
[356861622,1743340244638,-151.33,0.0004399,2]
[356861623,1743340244647,-151.33,0.0004399,2]
[356861624,1743340244657,-151.33,0.0004399,2]
[356861625,1743340244666,-151.33,0.0004399,2]
[356861626,1743340244676,-151.33,0.0004399,2]
[356861627,1743340244685,-151.33,0.0004399,2]
[356861628,1743340244695,-151.33,0.0004399,2]
[356861629,1743340244705,-151.33,0.0004399,2]
[356861630,1743340244714,-151.33,0.0004399,2]
[356861631,1743340244723,-151.33,0.0004399,2]
[356861632,1743340244733,-151.33,0.0004399,2]
[356861633,1743340244743,-151.33,0.0004399,2]
[356861634,1743340244752,-151.33,0.0004399,2]
[356861635,1743340244762,-151.33,0.0004399,2]
[356861636,1743340244771,-151.33,0.0004399,2]
[356861637,1743340244781,-151.33,0.0004399,2]
[356861638,1743340244791,-151.33,0.0004399,2]
[356861639,1743340244800,-151.33,0.0004399,2]
[356861640,1743340244810,-151.33,0.0004399,2]
[356861641,1743340244820,-151.33,0.0004399,2]
[356861642,1743340244829,-151.33,0.0004399,2]
[356861643,1743340244976,-151.33,0.0004399,2]
[356861644,1743340244991,-151.33,0.0004399,2]
[356861645,1743340245000,-151.33,0.0004399,2]
[356861646,1743340245010,-151.33,0.0004399,2]
[356861647,1743340245020,-151.33,0.0004399,2]
[356861648,1743340245031,-151.33,0.0004399,2]
[356861649,1743340245041,-151.33,0.0004399,2]
[356861650,1743340245051,-151.33,0.0004399,2]
[356861651,1743340245061,-151.33,0.0004399,2]
[356861652,1743340245071,-151.33,0.0004399,2]
[356861653,1743340245081,-151.33,0.0004399,2]
[356861654,1743340245090,-151.33,0.0004399,2]
[356861655,1743340245101,-151.33,0.0004399,2]
[356861656,1743340245111,-151.33,0.0004399,2]
[356861657,1743340245121,-1417.31669054,0.00043995,10]
[356861658,1743340245130,-920.0,0.00043999,7]
[356861659,1743340245141,-500.0,0.00043999,120]
[356861660,1743340245150,-500.0,0.00043999,120]
[356861661,1743340245159,-500.0,0.00043999,120]
[356861662,1743340245169,-500.0,0.00043999,120]
[356861663,1743340245178,-500.0,0.00043999,120]
[356861664,1743340245188,-384.29122021,0.00043999,120]
[356861665,1743340245197,-150.0,0.00043999,120]
[356861666,1743340245206,-150.0,0.00043999,120]
[356861667,1743340245216,-150.0,0.00043999,120]
[356861668,1743340245226,-150.0,0.00043999,120]
[356861669,1743340245235,-150.0,0.00043999,120]
[356861670,1743340245245,-286.4208536,0.00043999,120]
[356861671,1743340245255,-150.0,0.00043999,120]
[356861672,1743340245264,-520.9641776,0.00044,61]
[356861673,1743340245275,-109414.2948602,0.00044,41]
[356861674,1743340245284,-132951.83962096,0.00044,2]
[356861679,1743340247453,-832.5317,0.00044,2]
[356861680,1743340247476,-3182.18081565,0.00044,2]
[356861682,1743341109310,-755.4635334,0.00015,2]
[356861683,1743341163049,-155.21812665,0.00014999,2]
[356861687,1743341322664,2186.48860167,0.0001421,7]
[356861710,1743341432476,-415.2190424,0.00015,2]
[356861713,1743341438247,-425.0551639,0.00015,2]
[356861714,1743341438259,-47589.5756237,0.00015,2]
[356861715,1743341440559,-0.01467406,0.00015,2]
[356861857,1743341446571,-766.2202522,0.00015,2]
[356861858,1743341446589,-1235387.70808145,0.00015,2]
[356861860,1743341446602,-42976.43387129,0.00015,2]
[356861862,1743341446613,-4999.99999901,0.0002,2]
[356861864,1743341446624,-151.29,0.0002,2]
[356861866,1743341446634,-151.29,0.0002,2]
[356861867,1743341446645,-447.31351609,0.00021,2]
[356861868,1743341446659,-1562.29127638,0.0002361,7]
[356861869,1743341446670,-5000.00965924,0.00024,5]
[356861870,1743341446681,-208.21,0.00026849,2]
[356861871,1743341446691,-151.0,0.00027234,2]
[356861872,1743341446702,-517.96627907,0.000305,7]
[356861873,1743341446712,-943.55469278,0.00032072,4]
[356861874,1743341446723,-3965.16410585,0.00032636,2]
[356861875,1743341446734,-208.21,0.00032646,2]
[356861876,1743341446744,-39807.71039351,0.00033072,7]
[356861877,1743341446755,-398.52031372,0.00033072,7]
[356861878,1743341446765,-1422.73811699,0.00038356,7]
[356861879,1743341446778,-208.21,0.00038443,2]
[356861880,1743341446788,-150.0,0.00040582,2]
[356861881,1743341446799,-3965.16410585,0.00040867,3]
[356861882,1743341446810,-500.0,0.00040877,31]
[356861883,1743341446821,-500.0,0.00040877,31]
[356861884,1743341446831,-500.0,0.00040877,31]
[356861885,1743341446842,-500.0,0.00040877,31]
[356861886,1743341446858,-266.19688727,0.00040877,31]
[356861887,1743341446868,-500.0,0.00040877,31]
[356861888,1743341446879,-500.0,0.00040877,31]
[356861889,1743341446892,-500.0,0.00040877,31]
[356861890,1743341446903,-500.0,0.00040877,31]
[356861891,1743341446914,-500.0,0.00040877,31]
[356861892,1743341446923,-300.0,0.00040877,31]
[356861893,1743341446934,-500.0,0.00040877,31]
[356861894,1743341446944,-329.33,0.00040906,2]
[356861895,1743341446955,-308.4240773,0.00041,42]
[356861896,1743341446966,-177.0,0.00041,14]
[356861897,1743341446976,-250.0,0.0004162,2]
[356861898,1743341446987,-150.0,0.00041667,2]
[356861899,1743341446998,-3965.16410585,0.00041729,3]
[356861900,1743341447008,-450.0,0.00042,43]
[356861901,1743341447019,-150.0,0.00042312,7]
[356861902,1743341447030,-997.34,0.00042396,120]
[356861903,1743341447042,-997.34,0.00042396,120]
[356861904,1743341447053,-908.95,0.00042396,120]
[356861905,1743341447063,-580.3670928,0.00042679,4]
[356861906,1743341447073,-3965.16410585,0.0004269,3]
[356861907,1743341447084,-500.0,0.000427,7]
[356861908,1743341447094,-500.0,0.000427,7]
[356861909,1743341447111,-500.0,0.000427,7]
[356861910,1743341447121,-500.0,0.000427,7]
[356861911,1743341447131,-213.61,0.000427,7]
[356861912,1743341447141,-500.0,0.000427,7]
[356861913,1743341447150,-500.0,0.000427,7]
[356861914,1743341447160,-500.0,0.000427,7]
[356861915,1743341447170,-500.0,0.000427,7]
[356861916,1743341447180,-500.0,0.000427,7]
[356861917,1743341447189,-500.0,0.000427,7]
[356861918,1743341447198,-500.0,0.000427,7]
[356861919,1743341447208,-500.0,0.000427,7]
[356861920,1743341447217,-151.29,0.000427,7]
[356861921,1743341447227,-500.0,0.00042739,60]
[356861922,1743341447237,-150.0,0.00042751,2]
[356861923,1743341447247,-3965.16410585,0.00042783,3]
[356861924,1743341447256,-166.66,0.00042869,2]
[356861925,1743341447266,-200.0,0.00042884,120]
[356861926,1743341447276,-194.99,0.00042894,2]
[356861927,1743341447286,-11895.4923176,0.00042905,3]
[356861928,1743341447296,-546.553,0.00042906,65]
[356861929,1743341447305,-1000.0,0.00042906,2]
[356861930,1743341447315,-23900.0,0.00042915,2]
[356861931,1743341447325,-161.39,0.00042969,120]
[356861932,1743341447335,-3965.16410585,0.0004299,3]
[356861933,1743341447352,-450.0,0.00043,44]
[356861934,1743341447362,-6309.0,0.00043,120]
[356861935,1743341447373,-329.33,0.0004317,2]
[356861936,1743341447384,-2000.0,0.000433,2]
[356861937,1743341447394,-251.7355,0.00043556,14]
[356861938,1743341447404,-3000.0,0.000436,10]
[356861939,1743341447414,-150.0,0.00043835,2]
[356861940,1743341447425,-500.0,0.00043835,120]
[356861941,1743341447435,-3965.16410585,0.00043836,3]
[356861942,1743341447445,-3965.16410585,0.0004388,3]
[356861943,1743341447455,-300.9644,0.0004388,2]
[356861944,1743341447464,-221.2045,0.0004389,2]
[356861945,1743341447473,-2693.4065,0.0004389,2]
[356861946,1743341447482,-191.70379971,0.000439,13]
[356861947,1743341447491,-231.77046919,0.000439,120]
[356861948,1743341447501,-500.00000635,0.000439,120]
[356861949,1743341447510,-3319.82042898,0.000439,2]
[356861950,1743341447520,-500.0,0.000439,120]
[356861951,1743341447529,-190.67787712,0.000439,2]
[356861952,1743341447539,-172.0626204,0.000439,9]
[356861953,1743341447549,-570.1776864,0.00043938,30]
[356861954,1743341447558,-436.03300404,0.00043945,120]
[356861955,1743341447568,-3965.16410585,0.00043963,3]
[356861956,1743341447577,-87233.6103287,0.0004397,3]
[356861957,1743341447587,-150.0,0.00043973,30]
[356861958,1743341447596,-150.0,0.00043973,30]
[356861959,1743341447609,-150.0,0.00043973,30]
[356861960,1743341447619,-150.0,0.00043973,30]
[356861961,1743341447628,-150.0,0.00043973,30]
[356861962,1743341447638,-150.0,0.00043973,30]
[356861963,1743341447647,-150.0,0.00043974,30]
[356861964,1743341447657,-150.0,0.00043974,30]
[356861965,1743341447667,-150.0,0.00043974,30]
[356861966,1743341447676,-150.0,0.00043975,30]
[356861967,1743341447685,-150.0,0.00043975,30]
[356861968,1743341447696,-150.0,0.00043975,30]
[356861969,1743341447705,-150.0,0.00043976,30]
[356861970,1743341447715,-150.0,0.00043976,30]
[356861971,1743341447725,-150.0,0.00043976,30]
[356861972,1743341447734,-150.0,0.00043977,30]
[356861973,1743341447744,-150.0,0.00043977,30]
[356861974,1743341447753,-150.0,0.00043977,30]
[356861975,1743341447763,-150.0,0.00043977,30]
[356861976,1743341447772,-150.0,0.00043978,30]
[356861977,1743341447782,-3965.16410585,0.00043978,3]
[356861978,1743341447791,-150.0,0.00043978,30]
[356861979,1743341447800,-150.0,0.00043978,30]
[356861980,1743341447810,-150.0,0.00043978,30]
[356861981,1743341447819,-150.0,0.00043979,30]
[356861982,1743341447828,-150.0,0.00043979,30]
[356861983,1743341447838,-150.0,0.00043979,30]
[356861984,1743341447847,-27756.1487409,0.0004398,3]
[356861985,1743341447858,-150.0,0.0004398,30]
[356861986,1743341447868,-150.0,0.0004398,30]
[356861987,1743341447877,-39651.6410585,0.0004398,3]
[356861988,1743341447887,-150.0,0.0004398,30]
[356861989,1743341447896,-150.0,0.00043981,30]
[356861990,1743341447906,-150.0,0.00043981,30]
[356861991,1743341447917,-150.0,0.00043981,30]
[356861992,1743341447926,-150.0,0.00043981,30]
[356861993,1743341447935,-150.0,0.00043982,30]
[356861994,1743341448045,-150.0,0.00043982,30]
[356861995,1743341448055,-150.0,0.00043982,30]
[356861996,1743341448066,-150.0,0.00043983,30]
[356861997,1743341448077,-150.0,0.00043983,30]
[356861998,1743341448087,-150.0,0.00043983,30]
[356861999,1743341448098,-150.0,0.00043984,30]
[356862000,1743341448111,-150.0,0.00043984,30]
[356862001,1743341448121,-150.0,0.00043984,30]
[356862002,1743341448132,-150.0,0.00043984,30]
[356862003,1743341448142,-150.0,0.00043984,30]
[356862004,1743341448152,-150.0,0.00043985,30]
[356862005,1743341448162,-150.0,0.00043985,30]
[356862006,1743341448172,-150.0,0.00043985,30]
[356862007,1743341448183,-150.0,0.00043986,30]
[356862008,1743341448193,-150.0,0.00043986,30]
[356862009,1743341448204,-150.0,0.00043986,30]
[356862010,1743341448215,-150.0,0.00043987,30]
[356862011,1743341448226,-150.0,0.00043987,30]
[356862012,1743341448238,-150.0,0.00043987,30]
[356862013,1743341448249,-150.0,0.00043987,30]
[356862014,1743341448260,-515.12750014,0.00043988,30]
[356862015,1743341448272,-150.0,0.00043988,30]
[356862016,1743341448284,-150.0,0.00043988,30]
[356862017,1743341448295,-150.0,0.00043988,30]
[356862018,1743341448308,-150.0,0.00043989,30]
[356862019,1743341448320,-150.0,0.00043989,30]
[356862020,1743341448333,-150.0,0.00043989,30]
[356862021,1743341448346,-150.0,0.00043989,30]
[356862022,1743341448378,-150.0,0.0004399,30]
[356862023,1743341448389,-150.0,0.0004399,30]
[356862024,1743341448401,-151.0,0.0004399,14]
[356862025,1743341448415,-151.0,0.0004399,14]
[356862026,1743341448428,-151.29,0.0004399,2]
[356862027,1743341448440,-151.29,0.0004399,2]
[356862028,1743341448452,-151.29,0.0004399,2]
[356862029,1743341448463,-151.29,0.0004399,2]
[356862030,1743341448473,-151.29,0.0004399,2]
[356862031,1743341448485,-151.29,0.0004399,2]
[356862032,1743341448496,-151.29,0.0004399,2]
[356862033,1743341448507,-151.29,0.0004399,2]
[356862034,1743341448522,-151.29,0.0004399,2]
[356862035,1743341448534,-151.29,0.0004399,2]
[356862036,1743341448546,-151.29,0.0004399,2]
[356862037,1743341448765,-151.29,0.0004399,2]
[356862038,1743341448777,-151.29,0.0004399,2]
[356862039,1743341448789,-150.0,0.0004399,30]
[356862040,1743341448800,-150.0,0.00043991,30]
[356862041,1743341448812,-150.0,0.00043991,30]
[356862042,1743341448824,-150.0,0.00043991,30]
[356862043,1743341448836,-150.0,0.00043991,30]
[356862044,1743341448848,-150.0,0.00043992,30]
[356862045,1743341448881,-150.0,0.00043992,30]
[356862046,1743341448892,-150.0,0.00043992,30]
[356862047,1743341448904,-150.0,0.00043993,30]
[356862048,1743341448934,-150.0,0.00043993,30]
[356862049,1743341448947,-150.0,0.00043994,30]
[356862050,1743341448958,-150.0,0.00043994,30]
[356862051,1743341448970,-150.0,0.00043994,30]
[356862052,1743341448981,-150.0,0.00043994,30]
[356862053,1743341448994,-150.0,0.00043995,30]
[356862054,1743341449005,-150.0,0.00043995,30]
[356862055,1743341449016,-150.0,0.00043995,30]
[356862056,1743341449027,-150.0,0.00043995,30]
[356862057,1743341449244,-150.0,0.00043995,30]
[356862058,1743341449258,-150.0,0.00043996,30]
[356862059,1743341449269,-150.0,0.00043996,30]
[356862060,1743341449281,-150.0,0.00043996,30]
[356862061,1743341449291,-150.0,0.00043997,30]
[356862062,1743341449303,-150.0,0.00043997,30]
[356862063,1743341449314,-150.0,0.00043997,30]
[356862064,1743341449325,-150.0,0.00043998,30]
[356862065,1743341449343,-150.0,0.00043998,30]
[356862066,1743341449370,-150.0,0.00043998,30]
[356862067,1743341449383,-150.0,0.00043998,30]
[356862068,1743341449394,-150.0,0.00043999,30]
[356862069,1743341449406,-188.19,0.00043999,120]
[356862070,1743341449418,-436.45495082,0.00043999,7]
[356862071,1743341449429,-344.13128117,0.00043999,120]
[356862072,1743341449442,-172.57126927,0.00043999,120]
[356862073,1743341449454,-413.99049837,0.00043999,120]
[356862074,1743341449465,-426.86081811,0.00043999,120]
[356862075,1743341449476,-414.23060999,0.00043999,31]
[356862076,1743341449488,-500.0,0.00043999,120]
[356862077,1743341449499,-500.0,0.00043999,120]
[356862078,1743341449511,-500.0,0.00043999,120]
[356862079,1743341449523,-500.0,0.00043999,120]